bitfinex/quotes_BTCUSD_20250114
["timestamp","ask_amount","ask_price","bid_price","bid_amount"]
[1736832262994,0.209845,95308.0,95307.0,0.00978064]
[1736832263219,0.31964884,95308.0,95307.0,0.00978064]
[1736832263443,0.10980384,95308.0,95307.0,0.00978064]
[1736832263660,0.18600384,95308.0,95307.0,0.00978064]
[1736832264153,0.18600384,95308.0,95288.0,0.209888]
[1736832264411,0.31965184,95307.0,95288.0,0.209888]
[1736832264638,0.31965184,95307.0,95289.0,0.01753422]
[1736832265516,0.31965184,95307.0,95290.0,0.00979521]
[1736832265990,0.32265184,95307.0,95291.0,0.01752702]
[1736832266216,0.33165184,95307.0,95291.0,0.01752702]
[1736832266453,0.31965184,95307.0,95291.0,0.01752702]
[1736832266683,0.32265184,95307.0,95291.0,0.01752702]
[1736832266903,0.33165184,95307.0,95291.0,0.01752702]
[1736832267126,0.11280384,95307.0,95292.0,0.21967621]
[1736832267567,0.02052972,95301.0,95293.0,0.01751982]
[1736832267806,0.10980384,95300.0,95293.0,0.01751982]
[1736832268056,0.10980384,95300.0,95293.0,0.02731503]
[1736832269210,0.11580384,95300.0,95294.0,0.00979521]
[1736832269419,0.11680384,95300.0,95294.0,0.00979521]
[1736832269870,0.11680384,95300.0,95295.0,0.01863598]
[1736832270095,0.11580384,95300.0,95295.0,0.01863598]
[1736832270282,0.11580384,95300.0,95294.0,0.00979521]
[1736832270586,0.10980384,95300.0,95296.0,0.01863238]
[1736832271328,0.11080384,95300.0,95296.0,0.01863238]
[1736832271949,0.10980384,95300.0,95296.0,0.01863238]
[1736832272170,0.11080384,95300.0,95296.0,0.01863238]
[1736832272355,0.11680384,95300.0,95296.0,0.01863238]
[1736832272530,0.11080384,95300.0,95296.0,0.01863238]
[1736832272926,0.11680384,95300.0,95296.0,0.01863238]
[1736832273543,0.11680384,95300.0,95297.0,0.20987]
[1736832273744,0.11680384,95300.0,95296.0,0.01863238]
[1736832274535,0.11680384,95300.0,95297.0,0.20987]
[1736832274738,0.006,95300.0,95297.0,0.41974]
[1736832275151,0.007,95300.0,95297.0,0.41974]
[1736832275359,0.007,95300.0,95299.0,0.209865]
[1736832275572,0.001,95300.0,95299.0,0.209865]
[1736832275797,0.001,95300.0,95299.0,1.709865]
[1736832276010,0.007,95300.0,95299.0,1.709865]
[1736832276216,0.0817,95314.0,95299.0,1.709865]
[1736832276421,0.10980384,95312.0,95306.0,0.209848]
[1736832278702,0.11680384,95312.0,95306.0,0.209848]
[1736832278879,0.10980384,95312.0,95306.0,0.209848]
[1736832279264,0.12080384,95312.0,95306.0,0.209848]
[1736832279463,0.11180384,95312.0,95306.0,0.209848]
[1736832279671,0.10980384,95312.0,95306.0,0.209848]
[1736832279869,0.11480384,95312.0,95306.0,0.209848]
[1736832280033,0.11580384,95312.0,95307.0,0.00978352]
[1736832281374,0.11480384,95312.0,95307.0,0.00978352]
[1736832281577,0.11580384,95312.0,95307.0,0.00978352]
[1736832281783,0.11080384,95312.0,95300.0,0.209863]
[1736832281959,0.11580384,95312.0,95300.0,0.209863]
[1736832282163,0.11580384,95312.0,95302.0,0.209859]
[1736832282359,0.11580384,95312.0,95301.0,0.01862827]
[1736832282567,0.11480384,95312.0,95303.0,0.01862107]
[1736832282767,0.11480384,95312.0,95302.0,0.209859]
[1736832282768,0.10980384,95312.0,95304.0,0.01861747]
[1736832283004,0.11080384,95312.0,95302.0,0.02543845]
[1736832283352,0.11080384,95312.0,95303.0,0.01862107]
[1736832283762,0.0484,95309.0,95303.0,0.01862107]
[1736832284018,0.19150384,95308.0,95302.0,0.02543845]
[1736832284230,0.209852,95306.0,95302.0,0.02543845]
[1736832284440,0.19150384,95305.0,95302.0,0.00978402]
[1736832284648,0.209854,95304.0,95296.0,0.01863238]
[1736832284860,0.10980384,95303.0,95296.0,0.01863238]
[1736832285283,0.10980384,95303.0,95297.0,0.01859939]
[1736832285660,0.10980384,95303.0,95297.0,0.02838738]
[1736832286790,0.10980384,95303.0,95298.0,0.00978799]
[1736832286949,0.11580384,95303.0,95298.0,0.00978799]
[1736832287580,0.11680384,95303.0,95298.0,0.00978799]
[1736832287979,0.11680384,95303.0,95296.0,0.01863238]
[1736832288176,0.11580384,95303.0,95297.0,0.01861225]
[1736832288414,0.11080384,95303.0,95297.0,0.01861225]
[1736832288773,0.11680384,95303.0,95297.0,0.01861225]
[1736832288969,0.11580384,95303.0,95297.0,0.01861225]
[1736832289245,0.11080384,95303.0,95297.0,0.01861225]
[1736832289554,0.11680384,95303.0,95297.0,0.01861225]
[1736832289761,0.0817,95298.0,95297.0,0.01861225]
[1736832289967,0.19150384,95298.0,95297.0,0.01861225]
[1736832290179,0.19150384,95298.0,95296.0,0.01863238]
[1736832290399,0.10980384,95297.0,95296.0,0.01863238]
[1736832292210,0.11280384,95297.0,95296.0,0.01863238]
[1736832292608,0.11880384,95297.0,95296.0,0.01863238]
[1736832292781,0.26880384,95297.0,95296.0,0.01863238]
[1736832293068,0.39890384,95297.0,95296.0,0.01863238]
[1736832293941,0.40190384,95297.0,95296.0,0.01863238]
[1736832301321,0.12180384,95297.0,95296.0,0.01863238]
[1736832302529,0.11280384,95297.0,95296.0,0.01863238]
[1736832302922,0.12180384,95297.0,95296.0,0.01863238]
[1736832303183,0.11880384,95297.0,95296.0,0.01863238]
[1736832303535,0.12180384,95297.0,95296.0,0.01863238]
[1736832304056,0.11880384,95297.0,95296.0,0.01863238]
[1736832304867,0.12080384,95297.0,95296.0,0.01863238]
[1736832305599,0.11180384,95297.0,95296.0,0.01863238]
[1736832306241,0.12080384,95297.0,95296.0,0.01863238]
[1736832306447,0.13080384,95297.0,95296.0,0.01863238]
[1736832307384,0.13259535,95297.0,95296.0,0.01863238]
[1736832310772,0.13243661,95297.0,95296.0,0.01863238]
[1736832314864,0.02279151,95297.0,95296.0,0.01863238]
[1736832315067,0.02279151,95297.0,95296.0,0.0380128]
[1736832315207,0.02279151,95297.0,95296.0,0.01863238]
[1736832315425,0.02279151,95297.0,95296.0,0.0380128]
[1736832315642,0.02279151,95297.0,95296.0,0.01863238]
[1736832315985,0.02279151,95297.0,95296.0,0.02467238]
[1736832316186,0.02279151,95297.0,95296.0,0.04508856]
[1736832316521,0.02279151,95297.0,95296.0,0.07055028]
[1736832316740,0.02079151,95297.0,95296.0,0.07055028]
[1736832316992,0.01179151,95297.0,95296.0,0.09012587]
[1736832317404,0.01179151,95297.0,95296.0,0.32487112]
[1736832317529,0.01179151,95297.0,95296.0,0.50172197]
[1736832318155,0.01179151,95297.0,95296.0,1.76697672]
[1736832318368,0.00179382,95313.0,95311.0,0.309839]
[1736832318767,0.00179382,95313.0,95311.0,0.23514053]
[1736832319180,0.00179382,95313.0,95311.0,1.86060225]
[1736832319426,0.00179382,95313.0,95311.0,1.93850225]
[1736832319635,0.00179382,95313.0,95311.0,1.96007784]
[1736832319988,0.00179382,95313.0,95311.0,1.95807784]
[1736832320213,0.00179382,95313.0,95311.0,1.96007784]
[1736832320845,0.00179382,95313.0,95311.0,1.94050225]
[1736832321629,0.00179382,95313.0,95311.0,1.93850225]
[1736832321828,0.00179382,95313.0,95311.0,1.93950225]
[1736832322032,0.00179382,95313.0,95311.0,1.93850225]
[1736832322229,0.00179382,95313.0,95311.0,0.43850225]
[1736832322423,0.00279382,95312.0,95311.0,0.43950225]
[1736832322635,0.00279382,95312.0,95311.0,0.4238335]
[1736832326310,0.00279382,95312.0,95311.0,0.43457142]
[1736832329192,0.00279382,95312.0,95311.0,0.45541642]
[1736832329470,0.00279382,95312.0,95311.0,0.35541642]
[1736832331703,0.00179382,95312.0,95311.0,0.35441642]
[1736832331909,0.00179382,95312.0,95311.0,1.85441642]
[1736832332159,0.00179382,95312.0,95311.0,1.85541642]
[1736832334999,0.00179382,95312.0,95311.0,1.85441642]
[1736832335134,0.00179382,95312.0,95311.0,1.83457142]
[1736832335331,0.00179382,95312.0,95311.0,1.83357142]
[1736832335702,0.00179382,95312.0,95311.0,1.83457142]
[1736832336089,0.00179382,95312.0,95311.0,1.82853142]
[1736832336256,0.00179382,95312.0,95311.0,1.83461142]
[1736832341039,0.00179382,95312.0,95311.0,1.93461142]
[1736832342652,0.00179382,95312.0,95311.0,1.93361142]
[1736832342888,0.00179382,95312.0,95311.0,1.93461142]
[1736832343702,0.00179382,95312.0,95311.0,1.9502544]
[1736832344774,0.00179382,95312.0,95311.0,1.8723544]
[1736832346034,0.00179382,95312.0,95311.0,1.88019019]
[1736832357728,0.00179382,95312.0,95311.0,0.05961327]
[1736832357962,0.04879382,95312.0,95311.0,0.05961327]
[1736832358747,0.04879382,95312.0,95311.0,0.05861327]
[1736832358943,0.05279382,95312.0,95311.0,0.04297029]
[1736832359146,0.05279382,95312.0,95311.0,0.0351345]
[1736832359601,0.05379382,95312.0,95311.0,0.0351345]
[1736832359959,0.05279382,95312.0,95311.0,0.0351345]
[1736832360305,0.04879382,95312.0,95311.0,0.0351345]
[1736832360723,0.05079382,95312.0,95311.0,0.0351345]
[1736832362378,0.05079382,95312.0,95311.0,0.05081802]
[1736832364625,0.05079382,95312.0,95311.0,0.28600669]
[1736832365456,0.05079382,95312.0,95311.0,0.28027439]
[1736832365850,0.05079382,95312.0,95311.0,0.04508572]
[1736832367013,0.05079382,95312.0,95311.0,0.28027309]
[1736832370826,0.05079382,95312.0,95311.0,0.04508572]
[1736832373141,0.05079382,95312.0,95311.0,0.0294022]
[1736832375464,0.05079382,95312.0,95311.0,0.26457487]
[1736832375895,0.05079382,95312.0,95311.0,0.0294022]
[1736832377999,0.05079382,95312.0,95311.0,0.26434266]
[1736832378506,0.05079382,95312.0,95311.0,0.0294022]
[1736832380036,0.05079382,95312.0,95311.0,0.01587297]
[1736832380441,0.05079382,95312.0,95311.0,0.02942289]
[1736832382281,0.05079382,95312.0,95311.0,0.26436335]
[1736832382678,0.05079382,95312.0,95311.0,0.02942289]
[1736832385020,0.05079382,95312.0,95311.0,0.02334289]
[1736832385222,0.12729382,95312.0,95311.0,0.02934289]
[1736832386538,0.12529382,95312.0,95311.0,0.02934289]
[1736832386753,0.12729382,95312.0,95311.0,0.02934289]
[1736832388043,0.12729382,95312.0,95311.0,0.02334289]
[1736832388263,0.12729382,95312.0,95311.0,0.02934289]
[1736832389097,0.12729382,95312.0,95311.0,0.02334289]
[1736832389306,0.23709766,95312.0,95311.0,0.02334289]
[1736832394183,0.12729382,95312.0,95311.0,0.02334289]
[1736832397840,0.00379382,95312.0,95311.0,0.02334289]
[1736832401209,0.00379382,95312.0,95311.0,0.02439197]
[1736832401411,0.00379382,95312.0,95311.0,0.02334289]
[1736832401619,0.00379382,95312.0,95311.0,0.02926289]
[1736832402055,0.11359766,95312.0,95311.0,0.02926289]
[1736832402261,0.24439766,95312.0,95311.0,0.02334289]
[1736832404407,0.2650749,95312.0,95311.0,0.02334289]
[1736832408857,0.2650749,95312.0,95311.0,0.00979297]
[1736832409058,0.2630749,95312.0,95311.0,0.00979297]
[1736832409514,0.2720749,95312.0,95311.0,0.00979297]
[1736832409715,0.209839,95311.0,95303.0,0.0008529]
[1736832409925,0.19080384,95310.0,95303.0,0.0008529]
[1736832410801,0.209843,95309.0,95303.0,0.0008529]
[1736832410928,0.10980384,95308.0,95303.0,0.0008529]
[1736832412596,0.11180384,95308.0,95303.0,0.0008529]
[1736832414135,0.11980384,95308.0,95303.0,0.0008529]
[1736832414342,0.11780384,95308.0,95303.0,0.0008529]
[1736832414534,0.11980384,95308.0,95303.0,0.0008529]
[1736832414942,0.11780384,95308.0,95303.0,0.0008529]
[1736832415349,0.11180384,95308.0,95303.0,0.0008529]
[1736832416130,0.01,95308.0,95303.0,0.0008529]
[1736832416344,0.002,95308.0,95304.0,0.01489085]
[1736832416746,0.01,95308.0,95304.0,0.01489085]
[1736832417305,0.008,95308.0,95304.0,0.01489085]
[1736832417665,0.01,95308.0,95304.0,0.01489085]
[1736832418095,0.01,95308.0,95305.0,0.00979312]
[1736832418465,0.002,95308.0,95305.0,0.00979312]
[1736832418666,0.01,95308.0,95306.0,0.01488366]
[1736832418866,0.008,95308.0,95306.0,0.01488366]
[1736832419067,0.081,95310.0,95306.0,0.01488366]
[1736832419377,0.01,95308.0,95303.0,0.0008529]
[1736832419581,0.002,95308.0,95303.0,0.0008529]
[1736832420107,0.01,95308.0,95303.0,0.0008529]
[1736832420289,0.002,95308.0,95303.0,0.0008529]
[1736832420496,0.081,95310.0,95303.0,0.0008529]
[1736832420694,0.002,95308.0,95303.0,0.0008529]
[1736832421319,0.209843,95309.0,95303.0,0.0008529]
[1736832421529,0.01,95308.0,95303.0,0.0008529]
[1736832421763,0.01,95308.0,95304.0,0.00979234]
[1736832422109,0.008,95308.0,95304.0,0.00979234]
[1736832422888,0.209843,95309.0,95304.0,0.00979234]
[1736832423123,0.209843,95309.0,95303.0,0.0008529]
[1736832423261,0.008,95308.0,95303.0,0.0008529]
[1736832424766,0.209843,95309.0,95303.0,0.0008529]
[1736832424973,0.002,95308.0,95303.0,0.0008529]
[1736832425172,0.209848,95307.0,95303.0,0.0008529]
[1736832426149,0.209852,95305.0,95303.0,0.0008529]
[1736832426326,0.31965584,95305.0,95303.0,0.0008529]
[1736832428369,0.32865584,95305.0,95303.0,0.0008529]
[1736832428964,0.33065584,95305.0,95303.0,0.0008529]
[1736832436606,0.12080384,95305.0,95303.0,0.0008529]
[1736832442621,0.11180384,95305.0,95303.0,0.0008529]
[1736832443223,0.11980384,95305.0,95303.0,0.0008529]
[1736832443422,0.10980384,95305.0,95303.0,0.0008529]
[1736832443602,0.209854,95304.0,95303.0,0.0008529]
[1736832444003,0.12080384,95305.0,95303.0,0.0008529]
[1736832444204,0.209854,95304.0,95303.0,0.0008529]
[1736832444405,0.11880384,95305.0,95303.0,0.0008529]
[1736832444732,0.12080384,95305.0,95303.0,0.0008529]
[1736832445613,0.11180384,95305.0,95303.0,0.0008529]
[1736832446109,0.008,95304.0,95303.0,0.0008529]
[1736832446495,0.11180384,95305.0,95303.0,0.0008529]
[1736832446717,0.12080384,95305.0,95303.0,0.0008529]
[1736832446922,0.11180384,95305.0,95303.0,0.0008529]
[1736832447163,0.10980384,95305.0,95303.0,0.0008529]
[1736832447357,0.002,95304.0,95303.0,0.0008529]
[1736832448399,0.008,95304.0,95303.0,0.0008529]
[1736832449363,0.008,95304.0,95303.0,0.01066026]
[1736832450114,0.008,95304.0,95303.0,0.03366026]
[1736832450353,0.008,95304.0,95303.0,0.21922695]
[1736832450542,0.008,95304.0,95303.0,0.26787775]
[1736832450891,0.01,95304.0,95303.0,2.04858091]
[1736832451094,0.008,95304.0,95303.0,3.83229875]
[1736832451305,0.008,95304.0,95303.0,3.65159559]
[1736832451490,0.00179109,95305.0,95304.0,0.661154]
[1736832451686,0.00179109,95305.0,95304.0,2.46100233]
[1736832451847,0.00179109,95305.0,95304.0,2.4443981]
[1736832452240,0.00179109,95305.0,95304.0,2.2706121]
[1736832452442,0.00179109,95305.0,95304.0,2.28039549]
[1736832452649,0.00179382,95312.0,95311.0,0.661139]
[1736832452812,0.00179382,95312.0,95311.0,0.77094284]
[1736832453009,0.00179382,95312.0,95311.0,0.78693391]
[1736832454142,0.00179382,95312.0,95311.0,1.06860229]
[1736832454362,0.00179382,95312.0,95311.0,2.45879845]
[1736832454544,0.00179382,95312.0,95311.0,2.35879845]
[1736832454734,0.00179382,95312.0,95311.0,2.46858184]
[1736832454942,0.00179382,95312.0,95311.0,2.18691346]
[1736832455236,0.00279382,95312.0,95311.0,0.68791346]
[1736832455395,0.00179382,95312.0,95311.0,0.68691346]
[1736832455801,0.00179382,95312.0,95311.0,0.44826225]
[1736832456134,0.00179382,95312.0,95311.0,0.37484225]
[1736832456339,0.00179382,95312.0,95311.0,0.37584225]
[1736832456757,0.00179382,95312.0,95311.0,0.61041169]
[1736832457914,0.00179382,95312.0,95311.0,0.60941169]
[1736832458110,0.00179382,95312.0,95311.0,0.61041169]
[1736832458735,0.00179382,95312.0,95311.0,0.37584225]
[1736832459352,0.00179382,95312.0,95311.0,0.24696225]
[1736832460324,0.00179382,95312.0,95311.0,0.26996225]
[1736832460840,0.00179382,95312.0,95311.0,0.26896225]
[1736832461298,0.00179382,95312.0,95311.0,0.26996225]
[1736832461468,0.00179382,95312.0,95311.0,0.26896225]
[1736832461799,0.00179382,95312.0,95311.0,0.26996225]
[1736832462630,0.00179382,95312.0,95311.0,0.31199125]
[1736832464649,0.00179382,95312.0,95311.0,1.81099125]
[1736832464803,0.00179382,95312.0,95311.0,1.81199125]
[1736832467654,0.00179382,95312.0,95311.0,0.31199125]
[1736832468055,0.00179382,95312.0,95311.0,1.81199125]
[1736832469035,0.00179382,95312.0,95311.0,1.80554958]
[1736832471056,0.00179382,95312.0,95311.0,0.30554958]
[1736832471506,0.00179382,95312.0,95311.0,1.80554958]
[1736832474542,0.00179382,95312.0,95311.0,0.30554958]
[1736832475042,0.00179382,95312.0,95311.0,1.80554958]
[1736832477539,0.00179382,95312.0,95311.0,0.30554958]
[1736832479404,0.00179382,95312.0,95311.0,0.28254958]
[1736832479602,0.07689382,95312.0,95311.0,0.07859058]
[1736832479868,0.07689382,95312.0,95311.0,0.07759058]
[1736832480069,0.07689382,95312.0,95311.0,0.03556158]
[1736832480270,0.07889382,95312.0,95311.0,0.03556158]
[1736832480462,0.07689382,95312.0,95311.0,0.03556158]
[1736832480613,0.07689382,95312.0,95311.0,0.02968158]
[1736832480813,0.12849382,95312.0,95311.0,0.01933279]
[1736832481070,0.12849382,95312.0,95311.0,0.00978339]
[1736832481071,0.33533082,95312.0,95311.0,0.00978339]
[1736832481368,0.33933082,95312.0,95311.0,0.00978339]
[1736832481771,0.33533082,95312.0,95311.0,0.00978339]
[1736832482564,0.12549382,95312.0,95311.0,0.00978339]
[1736832482974,0.13249382,95312.0,95311.0,0.00978339]
[1736832483169,0.13449382,95312.0,95308.0,0.0008529]
[1736832483395,0.12749382,95312.0,95308.0,0.0008529]
[1736832483836,0.13549382,95312.0,95308.0,0.0008529]
[1736832484534,0.12749382,95312.0,95308.0,0.0008529]
[1736832484732,0.13549382,95312.0,95309.0,0.00987554]
[1736832484936,0.10980384,95311.0,95309.0,0.00987554]
[1736832485263,0.209843,95309.0,95308.0,0.0008529]
[1736832485435,0.284943,95309.0,95308.0,0.0008529]
[1736832485590,0.44334684,95309.0,95308.0,0.0008529]
[1736832487149,0.44534684,95309.0,95308.0,0.0008529]
[1736832487807,0.45234684,95309.0,95308.0,0.0008529]
[1736832499708,0.24250384,95309.0,95308.0,0.0008529]
[1736832499913,0.009,95309.0,95308.0,0.0008529]
[1736832500492,0.009,95309.0,95308.0,0.01076473]
[1736832501160,0.00179382,95312.0,95308.0,0.01076473]
[1736832501360,0.00179382,95312.0,95309.0,0.209843]
[1736832501597,0.00179382,95312.0,95310.0,0.00990751]
[1736832501798,0.00179382,95312.0,95309.0,0.209843]
[1736832502223,0.00179382,95312.0,95310.0,0.00990751]
[1736832502394,0.00279382,95312.0,95310.0,0.00990751]
[1736832502598,0.00679382,95312.0,95310.0,0.00990751]
[1736832502797,0.00579382,95312.0,95309.0,0.209843]
[1736832503003,0.00579382,95312.0,95310.0,0.00990751]
[1736832503206,0.00579382,95312.0,95309.0,0.209843]
[1736832503447,0.00579382,95312.0,95310.0,0.00990751]
[1736832503774,0.00579382,95312.0,95308.0,0.0008529]
[1736832503975,0.00179382,95312.0,95309.0,0.00990967]
[1736832504178,0.00679382,95312.0,95309.0,0.00990967]
[1736832504583,0.00179382,95312.0,95309.0,0.00990967]
[1736832504790,0.00579382,95312.0,95309.0,0.00990967]
[1736832505202,0.00179382,95312.0,95309.0,0.00990967]
[1736832505542,0.00779382,95312.0,95309.0,0.00990967]
[1736832505744,0.00279382,95312.0,95309.0,0.00990967]
[1736832506080,0.00179382,95312.0,95309.0,0.00990967]
[1736832507324,0.00579382,95312.0,95309.0,0.00990967]
[1736832507671,0.00179382,95312.0,95309.0,0.00990967]
[1736832508007,0.0774,95311.0,95309.0,0.00990967]
[1736832509425,0.0784,95311.0,95309.0,0.00990967]
[1736832509999,0.001,95311.0,95309.0,0.00990967]
[1736832510234,0.001,95311.0,95310.0,0.209841]
[1736832510449,0.001,95311.0,95310.0,0.21974189]
[1736832510644,0.007,95311.0,95310.0,0.00990089]
[1736832511156,0.006,95311.0,95308.0,0.0008529]
[1736832511358,0.00179382,95312.0,95310.0,0.00990089]
[1736832511657,0.006,95311.0,95308.0,0.0008529]
[1736832512162,0.00179382,95312.0,95308.0,0.0008529]
[1736832512350,0.001,95311.0,95308.0,0.0008529]
[1736832512755,0.00179382,95312.0,95309.0,0.209843]
[1736832514139,0.005,95311.0,95309.0,0.209843]
[1736832514861,0.001,95311.0,95309.0,0.209843]
[1736832515219,0.00679382,95312.0,95309.0,0.209843]
[1736832515541,0.00179382,95312.0,95309.0,0.209843]
[1736832515713,0.006,95311.0,95309.0,0.209843]
[1736832516141,0.005,95311.0,95309.0,0.209843]
[1736832516557,0.005,95311.0,95308.0,0.0008529]
[1736832517062,0.00179382,95312.0,95308.0,0.0008529]
[1736832517381,0.00279382,95312.0,95309.0,0.00979034]
[1736832517582,0.00779382,95312.0,95309.0,0.00979034]
[1736832517737,0.00279382,95312.0,95309.0,0.00979034]
[1736832517941,0.00179382,95312.0,95309.0,0.00979034]
[1736832518257,0.00179109,95311.0,95309.0,0.00979034]
[1736832518849,0.00179109,95311.0,95308.0,0.0008529]
[1736832520542,0.00279109,95311.0,95308.0,0.0008529]
[1736832520945,0.00179109,95311.0,95308.0,0.0008529]
[1736832521347,0.00779109,95311.0,95308.0,0.0008529]
[1736832521766,0.00279109,95311.0,95308.0,0.0008529]
[1736832522066,0.00679109,95311.0,95308.0,0.0008529]
[1736832522268,0.00279109,95311.0,95309.0,0.01491307]
[1736832522613,0.00279109,95311.0,95309.0,0.02470743]
[1736832522789,0.00779109,95311.0,95309.0,0.02470743]
[1736832523746,0.00679109,95311.0,95309.0,0.02470743]
[1736832523966,0.00279109,95311.0,95309.0,0.01491307]
[1736832524149,0.00779109,95311.0,95309.0,0.01491307]
[1736832524569,0.00179109,95311.0,95309.0,0.01491307]
[1736832524774,0.00779109,95311.0,95309.0,0.01491307]
[1736832525187,0.00279109,95311.0,95309.0,0.01491307]
[1736832525533,0.00679109,95311.0,95309.0,0.01491307]
[1736832525660,0.00279109,95311.0,95309.0,0.01491307]
[1736832526410,0.00279109,95311.0,95310.0,0.009796]
[1736832526768,0.00279109,95311.0,95310.0,0.02470547]
[1736832526988,0.00779109,95311.0,95310.0,0.009796]
[1736832527199,0.00679109,95311.0,95310.0,0.02470547]
[1736832527378,0.00179109,95311.0,95310.0,0.009796]
[1736832527584,0.00779109,95311.0,95310.0,0.009796]
[1736832527991,0.00679109,95311.0,95310.0,0.009796]
[1736832528370,0.00779109,95311.0,95310.0,0.02470547]
[1736832528636,0.00779109,95311.0,95310.0,0.009796]
[1736832528637,0.00279109,95311.0,95310.0,0.009796]
[1736832528836,0.00679109,95311.0,95310.0,0.02470547]
[1736832529047,0.00679109,95311.0,95310.0,0.009796]
[1736832529351,0.00679109,95311.0,95310.0,0.02470547]
[1736832529534,0.00679109,95311.0,95310.0,0.009796]
[1736832529757,0.00679109,95311.0,95310.0,0.02470547]
[1736832529945,0.00179109,95311.0,95310.0,0.009796]
[1736832530145,0.00179109,95311.0,95310.0,0.02470547]
[1736832530355,0.00779109,95311.0,95310.0,0.009796]
[1736832530531,0.00279109,95311.0,95310.0,0.02470547]
[1736832530717,0.00179109,95311.0,95310.0,0.02470547]
[1736832530919,0.00679109,95311.0,95310.0,0.02470547]
[1736832531161,0.00179109,95311.0,95310.0,0.02470547]
[1736832531361,0.00279109,95311.0,95310.0,0.02470547]
[1736832531540,0.00779109,95311.0,95310.0,0.02470547]
[1736832531752,0.00179109,95311.0,95310.0,0.02470547]
[1736832532141,0.00279109,95311.0,95310.0,0.02470547]
[1736832533585,0.08359109,95311.0,95310.0,0.02470547]
[1736832533795,0.08959109,95311.0,95310.0,0.02470547]
[1736832533919,0.08459109,95311.0,95310.0,0.02470547]
[1736832534371,0.08959109,95311.0,95310.0,0.02470547]
[1736832534678,0.08359109,95311.0,95310.0,0.02470547]
[1736832534835,0.08959109,95311.0,95310.0,0.02470547]
[1736832535242,0.08859109,95311.0,95310.0,0.02470547]
[1736832536079,0.08359109,95311.0,95310.0,0.02470547]
[1736832536472,0.08959109,95311.0,95310.0,0.02470547]
[1736832536679,0.08459109,95311.0,95310.0,0.02470547]
[1736832537055,0.08859109,95311.0,95310.0,0.02470547]
[1736832537276,0.00279109,95311.0,95310.0,0.02470547]
[1736832537694,0.00779109,95311.0,95310.0,0.02470547]
[1736832537858,0.00279109,95311.0,95310.0,0.02470547]
[1736832538882,0.00179109,95311.0,95310.0,0.02470547]
[1736832539414,0.00679109,95311.0,95310.0,0.02470547]
[1736832539618,0.00179109,95311.0,95310.0,0.02470547]
[1736832540046,0.00679109,95311.0,95310.0,0.02470547]
[1736832540253,0.00179109,95311.0,95310.0,0.02470547]
[1736832540608,0.00779109,95311.0,95310.0,0.02470547]
[1736832540791,0.00279109,95311.0,95310.0,0.02470547]
[1736832540991,0.00179109,95311.0,95310.0,0.02470547]
[1736832541193,0.00679109,95311.0,95310.0,0.02470547]
[1736832541400,0.00779109,95311.0,95310.0,0.02470547]
[1736832541893,0.00679109,95311.0,95310.0,0.02470547]
[1736832542093,0.00779109,95311.0,95310.0,0.02470547]
[1736832542446,0.00279109,95311.0,95310.0,0.02470547]
[1736832542795,0.00879109,95311.0,95310.0,0.02470547]
[1736832543479,0.00279109,95311.0,95310.0,0.02470547]
[1736832544162,0.00679109,95311.0,95310.0,0.02470547]
[1736832544359,0.00179109,95311.0,95310.0,0.02470547]
[1736832544568,0.00279109,95311.0,95310.0,0.02470547]
[1736832546053,0.00879109,95311.0,95310.0,0.02470547]
[1736832546662,0.01379109,95311.0,95310.0,0.02470547]
[1736832547063,0.00179109,95311.0,95310.0,0.02470547]
[1736832547356,0.00779109,95311.0,95310.0,0.02470547]
[1736832547728,0.00179109,95311.0,95310.0,0.02470547]
[1736832547950,0.00679109,95311.0,95310.0,0.02470547]
[1736832548156,0.00779109,95311.0,95310.0,0.02470547]
[1736832548506,0.00679109,95311.0,95310.0,0.02470547]
[1736832548718,0.00779109,95311.0,95310.0,0.02470547]
[1736832549102,0.00279109,95311.0,95310.0,0.02470547]
[1736832549446,0.00879109,95311.0,95310.0,0.02470547]
[1736832553253,0.24509493,95311.0,95310.0,0.02470547]
[1736832554014,0.24409493,95311.0,95310.0,0.009796]
[1736832554334,0.24109493,95311.0,95310.0,0.009796]
[1736832554626,0.25009493,95311.0,95310.0,0.009796]
[1736832554862,0.209841,95310.0,95308.0,0.0008529]
[1736832554975,0.10980384,95309.0,95308.0,0.0008529]
[1736832556293,0.11780384,95309.0,95308.0,0.0008529]
[1736832557710,0.11980384,95309.0,95308.0,0.0008529]
[1736832559554,0.11180384,95309.0,95308.0,0.0008529]
[1736832559781,0.10980384,95309.0,95308.0,0.0008529]
[1736832559998,0.12180384,95309.0,95308.0,0.0008529]
[1736832563519,0.12359493,95309.0,95308.0,0.0008529]
[1736832568715,0.12059493,95309.0,95308.0,0.0008529]
[1736832569159,0.12359493,95309.0,95308.0,0.0008529]
[1736832569360,0.11459493,95309.0,95308.0,0.0008529]
[1736832569938,0.12359493,95309.0,95308.0,0.0008529]
[1736832570349,0.01379109,95309.0,95308.0,0.0008529]
[1736832570552,0.01379109,95309.0,95308.0,0.01040567]
[1736832571662,0.01379109,95309.0,95308.0,0.02020516]
[1736832571861,0.01079109,95309.0,95308.0,0.02020516]
[1736832572125,0.01279109,95309.0,95308.0,0.02020516]
[1736832572433,0.00379109,95309.0,95308.0,0.02020516]
[1736832572637,0.01279109,95309.0,95308.0,0.02020516]
[1736832572864,0.00379109,95309.0,95308.0,0.02020516]
[1736832573234,0.00579109,95309.0,95308.0,0.02020516]
[1736832573594,0.00679109,95309.0,95308.0,0.02020516]
[1736832574360,0.08779109,95309.0,95308.0,0.02020516]
[1736832575758,0.08779109,95309.0,95308.0,0.01040567]
[1736832576459,0.00679109,95309.0,95308.0,0.01040567]
[1736832580278,0.11659493,95309.0,95308.0,0.0008529]
[1736832580956,0.16489493,95309.0,95308.0,0.0008529]
[1736832581368,0.24589493,95309.0,95308.0,0.0008529]
[1736832588722,0.11659493,95309.0,95308.0,0.0008529]
[1736832591491,0.24589493,95309.0,95308.0,0.0008529]
[1736832603418,0.00679109,95309.0,95308.0,0.0008529]
[1736832604276,0.00679109,95309.0,95308.0,0.01065643]
[1736832606354,0.00679109,95309.0,95308.0,0.19145643]
[1736832606551,0.00679109,95309.0,95308.0,0.19838544]
[1736832606708,0.00679109,95309.0,95308.0,1.69838544]
[1736832606915,0.00679109,95309.0,95308.0,1.69733643]
[1736832607467,0.00179109,95309.0,95308.0,1.69733643]
[1736832607655,0.00179109,95309.0,95308.0,1.59733643]
[1736832607855,0.00179109,95309.0,95308.0,0.01653643]
[1736832608065,0.00179109,95309.0,95308.0,0.01753643]
[1736832608066,0.00279109,95309.0,95308.0,0.01753643]
[1736832608852,0.00279109,95309.0,95308.0,0.25259822]
[1736832609271,0.00179109,95309.0,95308.0,0.01653643]
[1736832609613,0.00279109,95309.0,95308.0,0.01853643]
[1736832609941,0.00179109,95309.0,95308.0,0.01653643]
[1736832610874,0.00379109,95309.0,95308.0,0.01653643]
[1736832612468,0.00379109,95309.0,95308.0,0.01065643]